[Event "Late Titled Tuesday Blitz February 8 2022"]
[White "Kanyamarala, Tarun"]
[Black "Triapishko, Alexandr"]
[WhiteFideId "45004714"]
[BlackFideId "14122286"]
[WhiteElo "2144"]
[BlackElo "2479"]
[Result "0-1"]
[Round "07"]
[TimeControl "180+1"]
[Date "2022.02.08"]
[WhiteClock "0:00:02"]
[BlackClock "0:00:05"]

1. d4 {[%clk 0:03:00]}  d6 {[%clk 0:02:53]} 2. e4 {[%clk 0:02:58]}  e5 {[%clk 0:02:53]} 3. Nf3 {[%clk 0:02:57]}  exd4 {[%clk 0:02:53]} 4. Qxd4 {[%clk 0:02:57]}  Nf6 {[%clk 0:02:54]} 5. Nc3 {[%clk 0:02:57]}  Nc6 {[%clk 0:02:48]} 6. Bb5 {[%clk 0:02:56]}  Bd7 {[%clk 0:02:49]} 7. Bxc6 {[%clk 0:02:57]}  Bxc6 {[%clk 0:02:50]} 8. Bg5 {[%clk 0:02:56]}  Be7 {[%clk 0:02:50]} 9. O-O-O {[%clk 0:02:56]}  O-O {[%clk 0:02:51]} 10. Kb1 {[%clk 0:02:56]}  Nd7 {[%clk 0:02:50]} 11. Bxe7 {[%clk 0:02:51]}  Qxe7 {[%clk 0:02:51]} 12. Rhe1 {[%clk 0:02:50]}  Rfe8 {[%clk 0:02:48]} 13. Qe3 {[%clk 0:02:37]}  Qf6 {[%clk 0:02:38]} 14. Nd4 {[%clk 0:02:34]}  Nc5 {[%clk 0:02:24]} 15. f3 {[%clk 0:02:33]}  g6 {[%clk 0:02:09]} 16. g4 {[%clk 0:02:14]}  Ne6 {[%clk 0:01:58]} 17. Nxc6 {[%clk 0:01:50]}  bxc6 {[%clk 0:01:57]} 18. e5 {[%clk 0:01:51]}  Qxe5 {[%clk 0:01:54]} 19. Qxe5 {[%clk 0:01:50]}  dxe5 {[%clk 0:01:55]} 20. Rxe5 {[%clk 0:01:49]}  Kg7 {[%clk 0:01:22]} 21. Rde1 {[%clk 0:01:12]}  Red8 {[%clk 0:01:16]} 22. Kc1 {[%clk 0:01:10]}  c5 {[%clk 0:01:10]} 23. Ne4 {[%clk 0:01:04]}  Nd4 {[%clk 0:01:10]} 24. Nd2 {[%clk 0:00:58]}  Rd7 {[%clk 0:00:57]} 25. c3 {[%clk 0:00:52]}  Ne6 {[%clk 0:00:55]} 26. Nb3 {[%clk 0:00:45]}  Rd3 {[%clk 0:00:43]} 27. Nxc5 {[%clk 0:00:34]}  Nxc5 {[%clk 0:00:43]} 28. Rxc5 {[%clk 0:00:35]}  Rxf3 {[%clk 0:00:43]} 29. Rxc7 {[%clk 0:00:35]}  a5 {[%clk 0:00:42]} 30. Ree7 {[%clk 0:00:28]}  a4 {[%clk 0:00:42]} 31. Ra7 {[%clk 0:00:22]}  Rb8 {[%clk 0:00:37]} 32. Rab7 {[%clk 0:00:20]}  Rxb7 {[%clk 0:00:32]} 33. Rxb7 {[%clk 0:00:19]}  Rf1+ {[%clk 0:00:33]} 34. Kc2 {[%clk 0:00:18]}  Rf2+ {[%clk 0:00:34]} 35. Kd3 {[%clk 0:00:18]}  Rxh2 {[%clk 0:00:35]} 36. c4 {[%clk 0:00:18]}  Kf6 {[%clk 0:00:33]} 37. c5 {[%clk 0:00:16]}  Ke6 {[%clk 0:00:34]} 38. Ke4 {[%clk 0:00:13]}  a3 {[%clk 0:00:32]} 39. bxa3 {[%clk 0:00:08]}  Re2+ {[%clk 0:00:32]} 40. Kf4 {[%clk 0:00:08]}  Rxa2 {[%clk 0:00:32]} 41. c6 {[%clk 0:00:08]}  Rxa3 {[%clk 0:00:26]} 42. c7 {[%clk 0:00:08]}  Rc3 {[%clk 0:00:26]} 43. Kg5 {[%clk 0:00:04]}  h5 {[%clk 0:00:19]} 44. gxh5 {[%clk 0:00:04]}  Rc5+ {[%clk 0:00:19]} 45. Kg4 {[%clk 0:00:01]}  Rc4+ {[%clk 0:00:14]} 46. Kg3 {[%clk 0:00:02]}  gxh5 {[%clk 0:00:14]} 47. Rb5 {[%clk 0:00:02]}  f5 {[%clk 0:00:13]} 48. Rb6+ {[%clk 0:00:02]}  Ke5 {[%clk 0:00:12]} 49. Rh6 {[%clk 0:00:02]}  Rc3+ {[%clk 0:00:11]} 50. Kf2 {[%clk 0:00:01]}  Ke4 {[%clk 0:00:07]} 51. Rxh5 {[%clk 0:00:02]}  Rc2+ {[%clk 0:00:08]} 52. Kg3 {[%clk 0:00:02]}  Rxc7 {[%clk 0:00:07]} 53. Rh4+ {[%clk 0:00:02]}  Ke3 {[%clk 0:00:08]} 54. Ra4 {[%clk 0:00:03]}  Rg7+ {[%clk 0:00:08]} 55. Kh3 {[%clk 0:00:03]}  Rd7 {[%clk 0:00:03]} 56. Ra3+ {[%clk 0:00:03]}  Rd3 {[%clk 0:00:03]} 57. Ra5 {[%clk 0:00:03]}  Kf2+ {[%clk 0:00:02]} 58. Kh2 {[%clk 0:00:03]}  f4 {[%clk 0:00:03]} 59. Ra2+ {[%clk 0:00:03]}  Kf3 {[%clk 0:00:03]} 60. Kg1 {[%clk 0:00:03]}  Rd1+ {[%clk 0:00:03]} 61. Kh2 {[%clk 0:00:03]}  Re1 {[%clk 0:00:04]} 62. Ra3+ {[%clk 0:00:03]}  Re3 {[%clk 0:00:05]} 63. Ra7 {[%clk 0:00:03]}  Re2+ {[%clk 0:00:05]} 64. Kg1 {[%clk 0:00:04]}  Re1+ {[%clk 0:00:05]} 65. Kh2 {[%clk 0:00:04]}  Kf2 {[%clk 0:00:06]} 66. Ra2+ {[%clk 0:00:02]}  Re2 {[%clk 0:00:06]} 67. Ra7 {[%clk 0:00:02]}  f3 {[%clk 0:00:07]} 68. Ra6 {[%clk 0:00:02]}  Rb2 {[%clk 0:00:07]} 69. Kh3 {[%clk 0:00:02]}  Kf1 {[%clk 0:00:07]} 70. Ra1+ {[%clk 0:00:01]}  Kf2 {[%clk 0:00:05]} 71. Kh2 {[%clk 0:00:02]}  Rc2 {[%clk 0:00:03]} 72. Rb1 {[%clk 0:00:01]}  Ra2 {[%clk 0:00:03]} 73. Rc1 {[%clk 0:00:01]}  Ke2 {[%clk 0:00:03]} 74. Rh1 {[%clk 0:00:01]}  Ke3+ {[%clk 0:00:03]} 75. Kg3 {[%clk 0:00:01]}  Rg2+ {[%clk 0:00:04]} 76. Kh3 {[%clk 0:00:02]}  Rg8 {[%clk 0:00:04]} 77. Rb1 {[%clk 0:00:02]}  f2 {[%clk 0:00:03]} 78. Rb3+ {[%clk 0:00:02]}  Kd2 {[%clk 0:00:04]} 79. Rb2+ {[%clk 0:00:02]}  Ke3 {[%clk 0:00:04]} 80. Rb3+ {[%clk 0:00:02]}  Ke4 {[%clk 0:00:05]} 81. Rb1 {[%clk 0:00:02]}  Rg1 {[%clk 0:00:05]} 82. Rb4+ {[%clk 0:00:01]}  Ke5 {[%clk 0:00:05]} 83. Rb5+ {[%clk 0:00:01]}  Kd6 {[%clk 0:00:06]} 84. Rb6+ {[%clk 0:00:02]}  Kc7 {[%clk 0:00:06]} 85. Rb1 {[%clk 0:00:02]}  Rxb1 {[%clk 0:00:05]} 0-1


[Site "https://www.chess.com"]

[Event "Late Titled Tuesday Blitz February 8 2022"]
[White "Kim, Sergey"]
[Black "Dobre, Claudiu-Cristian"]
[WhiteFideId "13700570"]
[BlackFideId "1211854"]
[WhiteElo "2615"]
[BlackElo "2207"]
[Result "1-0"]
[Round "07"]
[TimeControl "180+1"]
[Date "2022.02.09"]
[WhiteClock "0:00:43"]
[BlackClock "0:00:12"]

1. d4 {[%clk 0:02:54]}  d5 {[%clk 0:02:59]} 2. c4 {[%clk 0:02:54]}  c6 {[%clk 0:02:59]} 3. Nf3 {[%clk 0:02:53]}  Nf6 {[%clk 0:03:00]} 4. Qc2 {[%clk 0:02:54]}  dxc4 {[%clk 0:02:58]} 5. Qxc4 {[%clk 0:02:53]}  Bf5 {[%clk 0:02:58]} 6. e3 {[%clk 0:02:52]}  e6 {[%clk 0:02:57]} 7. Bd3 {[%clk 0:02:52]}  Bxd3 {[%clk 0:02:56]} 8. Qxd3 {[%clk 0:02:52]}  Nbd7 {[%clk 0:02:52]} 9. O-O {[%clk 0:02:52]}  Bd6 {[%clk 0:02:41]} 10. Nc3 {[%clk 0:02:45]}  O-O {[%clk 0:02:37]} 11. e4 {[%clk 0:02:46]}  e5 {[%clk 0:02:38]} 12. Bg5 {[%clk 0:02:45]}  h6 {[%clk 0:02:36]} 13. Bh4 {[%clk 0:02:44]}  exd4 {[%clk 0:02:29]} 14. Qxd4 {[%clk 0:02:45]}  Bc5 {[%clk 0:02:11]} 15. Qc4 {[%clk 0:02:40]}  Qe7 {[%clk 0:01:58]} 16. Rad1 {[%clk 0:02:22]}  Rfe8 {[%clk 0:01:43]} 17. Rxd7 {[%clk 0:02:15]}  Qxd7 {[%clk 0:01:37]} 18. Qxc5 {[%clk 0:02:14]}  Nxe4 {[%clk 0:01:37]} 19. Nxe4 {[%clk 0:02:11]}  Rxe4 {[%clk 0:01:38]} 20. Bg3 {[%clk 0:02:05]}  Rd8 {[%clk 0:01:23]} 21. Qxa7 {[%clk 0:01:55]}  Re2 {[%clk 0:01:22]} 22. Qb6 {[%clk 0:01:50]}  Rde8 {[%clk 0:01:14]} 23. h3 {[%clk 0:01:46]}  R8e7 {[%clk 0:01:12]} 24. a4 {[%clk 0:01:29]}  Qd5 {[%clk 0:01:09]} 25. a5 {[%clk 0:01:20]}  Qa2 {[%clk 0:01:07]} 26. Nd4 {[%clk 0:01:12]}  Re1 {[%clk 0:00:49]} 27. Rxe1 {[%clk 0:01:07]}  Rxe1+ {[%clk 0:00:48]} 28. Kh2 {[%clk 0:01:08]}  Qd5 {[%clk 0:00:37]} 29. Nf3 {[%clk 0:01:03]}  Re7 {[%clk 0:00:34]} 30. Qb4 {[%clk 0:00:58]}  Rd7 {[%clk 0:00:26]} 31. Qc3 {[%clk 0:00:56]}  f6 {[%clk 0:00:20]} 32. Nh4 {[%clk 0:00:54]}  g5 {[%clk 0:00:18]} 33. Nf3 {[%clk 0:00:52]}  Kf7 {[%clk 0:00:18]} 34. Qc2 {[%clk 0:00:49]}  Kg7 {[%clk 0:00:18]} 35. Qc3 {[%clk 0:00:47]}  Re7 {[%clk 0:00:18]} 36. Nd4 {[%clk 0:00:46]}  Re4 {[%clk 0:00:17]} 37. Nf3 {[%clk 0:00:45]}  Rc4 {[%clk 0:00:15]} 38. Qe3 {[%clk 0:00:44]}  Rb4 {[%clk 0:00:12]} 39. Qe7+ {[%clk 0:00:43]} 1-0


[Site "https://www.chess.com"]

[Event "Late Titled Tuesday Blitz February 8 2022"]
[White "Kukula, Pawel"]
[Black "Zhurbinsky, David"]
[WhiteFideId "1115081"]
[BlackFideId "2072904"]
[WhiteElo "2203"]
[BlackElo "2559"]
[Result "0-1"]
[Round "07"]
[TimeControl "180+1"]
[Date "2022.02.09"]
[WhiteClock "0:00:14"]
[BlackClock "0:00:31"]

1. d4 {[%clk 0:02:58]}  Nf6 {[%clk 0:03:00]} 2. Nf3 {[%clk 0:02:58]}  e6 {[%clk 0:02:59]} 3. Nbd2 {[%clk 0:02:58]}  d5 {[%clk 0:02:55]} 4. e3 {[%clk 0:02:57]}  c5 {[%clk 0:02:54]} 5. Bd3 {[%clk 0:02:56]}  Nc6 {[%clk 0:02:53]} 6. c3 {[%clk 0:02:56]}  Bd6 {[%clk 0:02:53]} 7. O-O {[%clk 0:02:52]}  O-O {[%clk 0:02:53]} 8. dxc5 {[%clk 0:02:52]}  Bxc5 {[%clk 0:02:52]} 9. e4 {[%clk 0:02:53]}  e5 {[%clk 0:02:41]} 10. Qc2 {[%clk 0:02:49]}  Be6 {[%clk 0:02:10]} 11. b4 {[%clk 0:02:48]}  Bb6 {[%clk 0:02:07]} 12. b5 {[%clk 0:02:47]}  dxe4 {[%clk 0:02:07]} 13. Nxe4 {[%clk 0:02:46]}  Na5 {[%clk 0:01:59]} 14. Nxe5 {[%clk 0:02:41]}  Nxe4 {[%clk 0:01:55]} 15. Bxe4 {[%clk 0:02:42]}  f5 {[%clk 0:01:55]} 16. Bf3 {[%clk 0:02:24]}  Rc8 {[%clk 0:01:52]} 17. Rd1 {[%clk 0:02:21]}  Qf6 {[%clk 0:01:47]} 18. Qe2 {[%clk 0:02:00]}  Rfe8 {[%clk 0:01:37]} 19. Bd5 {[%clk 0:01:09]}  Rc5 {[%clk 0:01:05]} 20. Nd7 {[%clk 0:00:24]}  Qf7 {[%clk 0:00:53]} 21. Nxc5 {[%clk 0:00:24]}  Bxd5 {[%clk 0:00:52]} 22. Qd2 {[%clk 0:00:22]}  Bxc5 {[%clk 0:00:51]} 23. Bb2 {[%clk 0:00:23]}  Be4 {[%clk 0:00:46]} 24. Qd7 {[%clk 0:00:21]}  Qg6 {[%clk 0:00:42]} 25. g3 {[%clk 0:00:17]}  Nc4 {[%clk 0:00:37]} 26. Bc1 {[%clk 0:00:17]}  Ne5 {[%clk 0:00:30]} 27. Qd2 {[%clk 0:00:14]}  Nf3+ {[%clk 0:00:31]} 0-1


[Site "https://www.chess.com"]

[Event "Late Titled Tuesday Blitz February 8 2022"]
[White "Ladan, Nicholas"]
[Black "Aaditya Dhingra"]
[WhiteFideId "30918855"]
[BlackFideId "25678191"]
[WhiteElo "2294"]
[BlackElo "1789"]
[Result "1-0"]
[Round "07"]
[TimeControl "180+1"]
[Date "2022.02.09"]
[WhiteClock "0:00:08"]
[BlackClock "0:00:01"]

1. d4 {[%clk 0:03:00]}  d5 {[%clk 0:02:59]} 2. c4 {[%clk 0:03:00]}  e6 {[%clk 0:02:59]} 3. Nf3 {[%clk 0:02:59]}  Nf6 {[%clk 0:02:58]} 4. g3 {[%clk 0:03:00]}  dxc4 {[%clk 0:02:53]} 5. Bg2 {[%clk 0:02:59]}  a6 {[%clk 0:02:53]} 6. a4 {[%clk 0:02:56]}  Nc6 {[%clk 0:02:52]} 7. O-O {[%clk 0:02:56]}  Bd7 {[%clk 0:02:49]} 8. Na3 {[%clk 0:02:45]}  b5 {[%clk 0:02:46]} 9. Bg5 {[%clk 0:02:39]}  Rb8 {[%clk 0:02:39]} 10. Ne5 {[%clk 0:02:34]}  Nxe5 {[%clk 0:02:22]} 11. dxe5 {[%clk 0:02:33]}  h6 {[%clk 0:02:23]} 12. Be3 {[%clk 0:01:40]}  Nd5 {[%clk 0:02:10]} 13. Bxd5 {[%clk 0:01:38]}  exd5 {[%clk 0:02:09]} 14. Qxd5 {[%clk 0:01:39]}  Be6 {[%clk 0:01:54]} 15. Qxd8+ {[%clk 0:01:20]}  Kxd8 {[%clk 0:01:48]} 16. Rfd1+ {[%clk 0:01:20]}  Kc8 {[%clk 0:01:46]} 17. axb5 {[%clk 0:01:07]}  axb5 {[%clk 0:01:45]} 18. Nb1 {[%clk 0:00:37]}  b4 {[%clk 0:01:24]} 19. Nd2 {[%clk 0:00:36]}  Be7 {[%clk 0:01:21]} 20. Rdc1 {[%clk 0:00:36]}  c3 {[%clk 0:01:13]} 21. bxc3 {[%clk 0:00:36]}  b3 {[%clk 0:01:13]} 22. Rcb1 {[%clk 0:00:33]}  Rd8 {[%clk 0:01:08]} 23. c4 {[%clk 0:00:29]}  Bc5 {[%clk 0:00:49]} 24. Nxb3 {[%clk 0:00:22]}  Bxe3 {[%clk 0:00:48]} 25. fxe3 {[%clk 0:00:23]}  Bxc4 {[%clk 0:00:46]} 26. Nd4 {[%clk 0:00:22]}  Rxb1+ {[%clk 0:00:39]} 27. Rxb1 {[%clk 0:00:22]}  Re8 {[%clk 0:00:36]} 28. Rc1 {[%clk 0:00:20]}  Bd5 {[%clk 0:00:33]} 29. Rc5 {[%clk 0:00:19]}  Bb7 {[%clk 0:00:23]} 30. Kf2 {[%clk 0:00:18]}  Kd7 {[%clk 0:00:23]} 31. g4 {[%clk 0:00:18]}  Be4 {[%clk 0:00:19]} 32. Kg3 {[%clk 0:00:18]}  c6 {[%clk 0:00:19]} 33. Kf4 {[%clk 0:00:18]}  Bd5 {[%clk 0:00:19]} 34. Nf5 {[%clk 0:00:18]}  g6 {[%clk 0:00:15]} 35. Nxh6 {[%clk 0:00:15]}  Ra8 {[%clk 0:00:15]} 36. Kg5 {[%clk 0:00:07]}  Ke7 {[%clk 0:00:11]} 37. Rc3 {[%clk 0:00:04]}  Ra2 {[%clk 0:00:09]} 38. h4 {[%clk 0:00:03]}  Rxe2 {[%clk 0:00:07]} 39. h5 {[%clk 0:00:04]}  gxh5 {[%clk 0:00:06]} 40. Kxh5 {[%clk 0:00:04]}  Rh2+ {[%clk 0:00:05]} 41. Kg5 {[%clk 0:00:05]}  Kd7 {[%clk 0:00:05]} 42. Nf5 {[%clk 0:00:05]}  Rg2 {[%clk 0:00:03]} 43. Nd4 {[%clk 0:00:05]}  Be6 {[%clk 0:00:02]} 44. Nxe6 {[%clk 0:00:05]}  Kxe6 {[%clk 0:00:03]} 45. Rxc6+ {[%clk 0:00:04]}  Kxe5 {[%clk 0:00:03]} 46. Rc7 {[%clk 0:00:04]}  f6+ {[%clk 0:00:03]} 47. Kh5 {[%clk 0:00:04]}  Rh2+ {[%clk 0:00:02]} 48. Kg6 {[%clk 0:00:05]}  Rg2 {[%clk 0:00:03]} 49. Rc4 {[%clk 0:00:05]}  Kd5 {[%clk 0:00:02]} 50. Rf4 {[%clk 0:00:05]}  Ke5 {[%clk 0:00:03]} 51. Rf5+ {[%clk 0:00:05]}  Ke4 {[%clk 0:00:03]} 52. Rf4+ {[%clk 0:00:06]}  Kxe3 {[%clk 0:00:03]} 53. Ra4 {[%clk 0:00:07]}  Kf3 {[%clk 0:00:03]} 54. Kf5 {[%clk 0:00:07]}  Rc2 {[%clk 0:00:01]} 55. Ra3+ {[%clk 0:00:08]} 1-0


[Site "https://www.chess.com"]

[Event "Late Titled Tuesday Blitz February 8 2022"]
[White "Marcziter, Dmitrii"]
[Black "Stoleriu, George"]
[WhiteFideId "13900765"]
[BlackFideId "1227505"]
[WhiteElo "2155"]
[BlackElo "2203"]
[Result "0-1"]
[Round "07"]
[TimeControl "180+1"]
[Date "2022.02.09"]
[WhiteClock "0:00:15"]
[BlackClock "0:01:02"]

1. e4 {[%clk 0:03:00]}  d5 {[%clk 0:02:55]} 2. Nc3 {[%clk 0:02:57]}  c6 {[%clk 0:02:54]} 3. exd5 {[%clk 0:02:54]}  cxd5 {[%clk 0:02:55]} 4. d4 {[%clk 0:02:54]}  Nc6 {[%clk 0:02:55]} 5. Nf3 {[%clk 0:02:53]}  Bg4 {[%clk 0:02:54]} 6. Be2 {[%clk 0:02:52]}  Nf6 {[%clk 0:02:54]} 7. h3 {[%clk 0:02:52]}  Bh5 {[%clk 0:02:54]} 8. O-O {[%clk 0:02:51]}  e6 {[%clk 0:02:55]} 9. Be3 {[%clk 0:02:49]}  Bd6 {[%clk 0:02:55]} 10. Nb5 {[%clk 0:02:47]}  Bb8 {[%clk 0:02:55]} 11. Re1 {[%clk 0:02:33]}  a6 {[%clk 0:02:55]} 12. Nc3 {[%clk 0:02:31]}  Qc7 {[%clk 0:02:55]} 13. g3 {[%clk 0:02:25]}  O-O {[%clk 0:02:55]} 14. Bf4 {[%clk 0:02:21]}  Qa5 {[%clk 0:02:49]} 15. Bxb8 {[%clk 0:02:20]}  Raxb8 {[%clk 0:02:50]} 16. Ne5 {[%clk 0:02:17]}  Bxe2 {[%clk 0:02:50]} 17. Rxe2 {[%clk 0:02:15]}  Rfc8 {[%clk 0:02:49]} 18. g4 {[%clk 0:02:08]}  Qb4 {[%clk 0:02:46]} 19. Nxc6 {[%clk 0:02:00]}  bxc6 {[%clk 0:02:37]} 20. Rb1 {[%clk 0:01:57]}  c5 {[%clk 0:02:37]} 21. dxc5 {[%clk 0:01:55]}  Rxc5 {[%clk 0:02:38]} 22. a3 {[%clk 0:01:52]}  Qc4 {[%clk 0:02:33]} 23. Re1 {[%clk 0:01:34]}  h6 {[%clk 0:02:30]} 24. Qf3 {[%clk 0:01:32]}  Rc7 {[%clk 0:02:08]} 25. Qg3 {[%clk 0:01:30]}  Rcb7 {[%clk 0:02:08]} 26. b3 {[%clk 0:01:20]}  Qc5 {[%clk 0:02:08]} 27. b4 {[%clk 0:01:19]}  Qc4 {[%clk 0:02:07]} 28. Qd3 {[%clk 0:01:13]}  Rc8 {[%clk 0:02:06]} 29. Rb3 {[%clk 0:01:11]}  Rbc7 {[%clk 0:02:05]} 30. Na4 {[%clk 0:01:01]}  Qxc2 {[%clk 0:01:58]} 31. Qxc2 {[%clk 0:01:01]}  Rxc2 {[%clk 0:01:59]} 32. Nc5 {[%clk 0:01:01]}  a5 {[%clk 0:02:00]} 33. Nd3 {[%clk 0:00:51]}  R8c3 {[%clk 0:01:55]} 34. Reb1 {[%clk 0:00:49]}  a4 {[%clk 0:01:33]} 35. Rxc3 {[%clk 0:00:48]}  Rxc3 {[%clk 0:01:33]} 36. Nc5 {[%clk 0:00:48]}  Ne4 {[%clk 0:01:33]} 37. Nxa4 {[%clk 0:00:44]}  Rxa3 {[%clk 0:01:32]} 38. Nc5 {[%clk 0:00:40]}  Nxc5 {[%clk 0:01:32]} 39. bxc5 {[%clk 0:00:40]}  Rc3 {[%clk 0:01:31]} 40. Rb5 {[%clk 0:00:38]}  Rxh3 {[%clk 0:01:31]} 41. Rb8+ {[%clk 0:00:35]}  Kh7 {[%clk 0:01:31]} 42. Rb7 {[%clk 0:00:35]}  Kg6 {[%clk 0:01:31]} 43. c6 {[%clk 0:00:35]}  Rc3 {[%clk 0:01:31]} 44. c7 {[%clk 0:00:35]}  Kg5 {[%clk 0:01:10]} 45. c8=Q {[%clk 0:00:28]}  Rxc8 {[%clk 0:01:11]} 46. Rxf7 {[%clk 0:00:27]}  g6 {[%clk 0:01:11]} 47. Re7 {[%clk 0:00:27]}  Rc6 {[%clk 0:01:10]} 48. Rg7 {[%clk 0:00:26]}  e5 {[%clk 0:01:07]} 49. Kg2 {[%clk 0:00:25]}  Kxg4 {[%clk 0:01:06]} 50. Rd7 {[%clk 0:00:22]}  d4 {[%clk 0:01:06]} 51. f3+ {[%clk 0:00:23]}  Kf4 {[%clk 0:01:05]} 52. Rd5 {[%clk 0:00:22]}  Rc2+ {[%clk 0:01:04]} 53. Kh3 {[%clk 0:00:21]}  Rf2 {[%clk 0:01:01]} 54. Rd8 {[%clk 0:00:18]}  Rxf3+ {[%clk 0:01:01]} 55. Kh4 {[%clk 0:00:18]}  g5+ {[%clk 0:01:02]} 56. Kh5 {[%clk 0:00:18]}  Rh3+ {[%clk 0:01:02]} 57. Kg6 {[%clk 0:00:18]}  g4 {[%clk 0:01:02]} 58. Rf8+ {[%clk 0:00:17]}  Ke4 {[%clk 0:01:02]} 59. Rf1 {[%clk 0:00:15]}  g3 {[%clk 0:01:02]} 60. Rh1 {[%clk 0:00:15]}  Rxh1 {[%clk 0:01:02]} 0-1


[Site "https://www.chess.com"]

[Event "Late Titled Tuesday Blitz February 8 2022"]
[White "Milosevic, Milos"]
[Black "Erdogdu, Mert"]
[WhiteFideId "964875"]
[BlackFideId "6301495"]
[WhiteElo "2198"]
[BlackElo "2485"]
[Result "0-1"]
[Round "07"]
[TimeControl "180+1"]
[Date "2022.02.09"]
[WhiteClock "0:01:51"]
[BlackClock "0:00:32"]

1. b4 {[%clk 0:02:58]}  d5 {[%clk 0:02:58]} 2. Bb2 {[%clk 0:02:58]}  Qd6 {[%clk 0:02:58]} 3. a3 {[%clk 0:02:57]}  e5 {[%clk 0:02:58]} 4. e3 {[%clk 0:02:56]}  Nf6 {[%clk 0:02:55]} 5. Nf3 {[%clk 0:02:55]}  Nbd7 {[%clk 0:02:54]} 6. Nd4 {[%clk 0:02:55]}  exd4 {[%clk 0:02:52]} 7. Bxd4 {[%clk 0:02:55]}  c6 {[%clk 0:02:52]} 8. Bb2 {[%clk 0:02:52]}  Be7 {[%clk 0:02:51]} 9. d4 {[%clk 0:02:51]}  O-O {[%clk 0:02:51]} 10. Bd3 {[%clk 0:02:51]}  a5 {[%clk 0:02:50]} 11. c3 {[%clk 0:02:48]}  axb4 {[%clk 0:02:43]} 12. cxb4 {[%clk 0:02:48]}  b6 {[%clk 0:02:40]} 13. Qe2 {[%clk 0:02:47]}  c5 {[%clk 0:02:38]} 14. dxc5 {[%clk 0:02:44]}  bxc5 {[%clk 0:02:38]} 15. b5 {[%clk 0:02:45]}  Ne5 {[%clk 0:02:28]} 16. Bc2 {[%clk 0:02:42]}  Bg4 {[%clk 0:02:22]} 17. f3 {[%clk 0:02:41]}  Bd7 {[%clk 0:02:22]} 18. g4 {[%clk 0:02:36]}  c4 {[%clk 0:01:57]} 19. g5 {[%clk 0:02:33]}  Nd3+ {[%clk 0:01:43]} 20. Bxd3 {[%clk 0:02:31]}  cxd3 {[%clk 0:01:44]} 21. Qxd3 {[%clk 0:02:31]}  Nh5 {[%clk 0:01:41]} 22. f4 {[%clk 0:02:29]}  Rfe8 {[%clk 0:01:34]} 23. O-O {[%clk 0:02:27]}  Bf8 {[%clk 0:01:23]} 24. Nc3 {[%clk 0:02:27]}  Qc5 {[%clk 0:01:12]} 25. Nxd5 {[%clk 0:02:15]}  Bxb5 {[%clk 0:01:01]} 26. Qf5 {[%clk 0:02:14]}  Bc4 {[%clk 0:00:40]} 27. Rfd1 {[%clk 0:02:12]}  Rad8 {[%clk 0:00:37]} 28. Qg4 {[%clk 0:02:06]}  Rxd5 {[%clk 0:00:36]} 29. Qxh5 {[%clk 0:02:04]}  Qxe3+ {[%clk 0:00:36]} 30. Kh1 {[%clk 0:02:04]}  Rxd1+ {[%clk 0:00:36]} 31. Rxd1 {[%clk 0:02:04]}  Be2 {[%clk 0:00:36]} 32. g6 {[%clk 0:01:54]}  Bf3+ {[%clk 0:00:34]} 33. Qxf3 {[%clk 0:01:47]}  Qxf3+ {[%clk 0:00:33]} 34. Kg1 {[%clk 0:01:48]}  Qxd1+ {[%clk 0:00:32]} 35. Kg2 {[%clk 0:01:49]}  Qc2+ {[%clk 0:00:33]} 36. Kg3 {[%clk 0:01:50]}  Qxb2 {[%clk 0:00:33]} 37. Kg4 {[%clk 0:01:51]}  hxg6 {[%clk 0:00:32]} 0-1


[Site "https://www.chess.com"]

[Event "Late Titled Tuesday Blitz February 8 2022"]
[White "Mirza, Diana"]
[Black "Chabris, Christopher"]
[WhiteFideId "2503999"]
[BlackFideId "2005263"]
[WhiteElo "1813"]
[BlackElo "2285"]
[Result "0-1"]
[Round "07"]
[TimeControl "180+1"]
[Date "2022.02.09"]
[WhiteClock "0:00:08"]
[BlackClock "0:00:21"]

1. d4 {[%clk 0:03:00]}  d5 {[%clk 0:02:59]} 2. Nf3 {[%clk 0:03:00]}  Nf6 {[%clk 0:02:58]} 3. e3 {[%clk 0:02:57]}  e6 {[%clk 0:02:54]} 4. Bd3 {[%clk 0:02:56]}  c5 {[%clk 0:02:53]} 5. b3 {[%clk 0:02:56]}  Nc6 {[%clk 0:02:52]} 6. a3 {[%clk 0:02:53]}  Bd6 {[%clk 0:02:51]} 7. Bb2 {[%clk 0:02:53]}  b6 {[%clk 0:02:51]} 8. Ne5 {[%clk 0:02:52]}  Qc7 {[%clk 0:02:47]} 9. f4 {[%clk 0:02:48]}  Bb7 {[%clk 0:02:44]} 10. Nd2 {[%clk 0:02:41]}  a6 {[%clk 0:02:42]} 11. O-O {[%clk 0:02:40]}  Ne7 {[%clk 0:02:41]} 12. Ndf3 {[%clk 0:02:15]}  h6 {[%clk 0:02:31]} 13. Qe2 {[%clk 0:02:06]}  Ne4 {[%clk 0:02:26]} 14. Bxe4 {[%clk 0:01:58]}  dxe4 {[%clk 0:02:25]} 15. Nd2 {[%clk 0:01:57]}  b5 {[%clk 0:02:09]} 16. Qh5 {[%clk 0:01:33]}  g6 {[%clk 0:01:56]} 17. Qh4 {[%clk 0:01:16]}  cxd4 {[%clk 0:01:48]} 18. Bxd4 {[%clk 0:01:04]}  Nf5 {[%clk 0:01:20]} 19. Qf6 {[%clk 0:00:57]}  Rg8 {[%clk 0:01:12]} 20. c4 {[%clk 0:00:25]}  Qe7 {[%clk 0:00:39]} 21. Qxe7+ {[%clk 0:00:18]}  Bxe7 {[%clk 0:00:39]} 22. cxb5 {[%clk 0:00:19]}  Nxd4 {[%clk 0:00:34]} 23. exd4 {[%clk 0:00:18]}  axb5 {[%clk 0:00:33]} 24. a4 {[%clk 0:00:18]}  b4 {[%clk 0:00:32]} 25. Ndc4 {[%clk 0:00:17]}  h5 {[%clk 0:00:28]} 26. Rac1 {[%clk 0:00:16]}  f6 {[%clk 0:00:28]} 27. Nb6 {[%clk 0:00:13]}  fxe5 {[%clk 0:00:27]} 28. Nxa8 {[%clk 0:00:13]}  Bxa8 {[%clk 0:00:24]} 29. dxe5 {[%clk 0:00:12]}  Kf7 {[%clk 0:00:22]} 30. Rc7 {[%clk 0:00:08]}  Bd5 {[%clk 0:00:21]} 0-1


[Site "https://www.chess.com"]

[Event "Late Titled Tuesday Blitz February 8 2022"]
[White "Musovic, Armin"]
[Black "Moore, Nicholas"]
[WhiteFideId "939935"]
[BlackFideId "4303709"]
[WhiteElo "2250"]
[BlackElo "2307"]
[Result "0-1"]
[Round "07"]
[TimeControl "180+1"]
[Date "2022.02.09"]
[WhiteClock "0:02:14"]
[BlackClock "0:02:09"]

1. a3 {[%clk 0:03:00]}  d5 {[%clk 0:02:57]} 2. Nc3 {[%clk 0:03:01]}  Nf6 {[%clk 0:02:57]} 3. d3 {[%clk 0:03:00]}  e5 {[%clk 0:02:55]} 4. Bg5 {[%clk 0:02:59]}  Nc6 {[%clk 0:02:54]} 5. Bxf6 {[%clk 0:02:57]}  gxf6 {[%clk 0:02:53]} 6. e4 {[%clk 0:02:57]}  d4 {[%clk 0:02:50]} 7. Nce2 {[%clk 0:02:58]}  f5 {[%clk 0:02:46]} 8. exf5 {[%clk 0:02:58]}  Bxf5 {[%clk 0:02:46]} 9. Ng3 {[%clk 0:02:58]}  Be6 {[%clk 0:02:46]} 10. Qh5 {[%clk 0:02:56]}  Qd7 {[%clk 0:02:45]} 11. h3 {[%clk 0:02:56]}  O-O-O {[%clk 0:02:44]} 12. Nf3 {[%clk 0:02:54]}  f6 {[%clk 0:02:37]} 13. Be2 {[%clk 0:02:50]}  Kb8 {[%clk 0:02:37]} 14. Nh4 {[%clk 0:02:41]}  Ne7 {[%clk 0:02:35]} 15. Ne4 {[%clk 0:02:27]}  Nd5 {[%clk 0:02:24]} 16. Bg4 {[%clk 0:02:22]}  Nf4 {[%clk 0:02:09]} 17. g3 {[%clk 0:02:14]}  Nxh5 {[%clk 0:02:09]} 0-1


[Site "https://www.chess.com"]